[Event "CZE-tht Extraliga 2018-19"]
[Site "Czech Republic"]
[Date "2019.04.20"]
[Round "10.5"]
[White "Jurcik, Marian"]
[Black "Vykouk, Jan"]
[Result "*"]
[ECO "B45"]
[WhiteElo "2494"]
[BlackElo "2441"]
[Annotator "ChessBase"]
[PlyCount "138"]
[EventDate "2018.11.03"]
[EventType "team-tourn"]
[EventCountry "CZE"]
[SourceTitle "playchess.com"]
[Source "ChessBase"]
[SourceQuality "1"]
[WhiteTeam "Siesta"]
[BlackTeam "Turnov"]
[TimeControl "40/5400+30:1800+30"]

1. e4 {[%emt 0:00:00]} c5 {[%emt 0:00:00]} 2. Nc3 {[%emt 0:00:27]} Nc6 {[%emt 0:00:00]} 3. Nf3 {[%emt 0:01:10]} e6 {[%emt 0:00:21]} 4. d4 {[%emt 0:00:22]} cxd4 {[%emt 0:00:05]} 5. Nxd4 {[%emt 0:00:09]} d6 {[%emt 0:00:03]} 6. g4 {[%emt 0:01:21]} a6 {[%emt 0:00:31]} 7. Be3 {[%emt 0:01:06]} Qc7 {[%emt 0:00:43]} 8. Qe2 {[%emt 0:03:42]} Nge7 {[%emt 0:01:35]} 9. Nb3 {[%emt 0:03:20]} b5 {[%emt 0:00:23]} 10. f4 {[%emt 0:00:42]} Bb7 {[%emt 0:01:16]} 11. O-O-O {[%emt 0:03:49]} Rc8 {[%emt 0:03:53]} 12. Qf2 {[%emt 0:08:11]} g5 {[%emt 0:07:48]} 13. Bxb5 {[%emt 0:01:41]} gxf4 {[%emt 0:00:13]} 14. Bxf4 {[%emt 0:03:02]} Ng6 {[%emt 0:00:37]} 15. Ba4 {[%emt 0:05:11]} Be7 {[%emt 0:08:21]} 16. Nd5 {[%emt 0:03:26]} exd5 {[%emt 0:00:04]} 17. exd5 {[%emt 0:00:08]} O-O {[%emt 0:00:04]} 18. dxc6 {[%emt 0:01:16]} Bxc6 {[%emt 0:00:09]} 19. Bxc6 {[%emt 0:00:20]} Qxc6 {[%emt 0:00:05]} 20. Bh6 {[%emt 0:07:18]} Bh4 {[%emt 0:03:07]} 21. Qd2 {[%emt 0:01:01]} Rfe8 {[%emt 0:00:03]} 22. Kb1 {[%emt 0:07:16]} Qf3 {[%emt 0:05:45]} 23. g5 {[%emt 0:02:51]} Qe4 {[%emt 0:05:07]} 24. Qd4 {[%emt 0:10:52]} Qxc2+ {[%emt 0:02:15]} 25. Ka1 {[%emt 0:00:05]} Re5 {[%emt 0:00:47]} 26. Rc1 {[%emt 0:10:42]} Qf5 {[%emt 0:00:08]} 27. Qxd6 {[%emt 0:00:32]} Rce8 {[%emt 0:02:03]} 28. Rhg1 {[%emt 0:07:56]} Qe6 {[%emt 0:04:50]} 29. Qxe6 {[%emt 0:02:54]} fxe6 {[%emt 0:00:08]} 30. Rc6 {[%emt 0:04:26]} Rd5 {[%emt 0:00:38]} 31. Rc7 {[%emt 0:03:31]} e5 {[%emt 0:00:54]} 32. Rg7+ {[%emt 0:02:21]} Kh8 {[%emt 0:00:05]} 33. Rc7 {[%emt 0:00:54]} e4 {[%emt 0:03:15]} 34. Bg7+ {[%emt 0:00:04]} Kg8 {[%emt 0:00:01]} 35. Bc3 {[%emt 0:02:04]} e3 {[%emt 0:00:09]} 36. Nc1 {[%emt 0:02:31]} e2 {[%emt 0:04:05]} 37. Rg7+ {[%emt 0:00:22]} Kf8 {[%emt 0:00:08]} 38. Nxe2 {[%emt 0:00:07]} Rxe2 {[%emt 0:00:05]} 39. Rxh7 {[%emt 0:00:49]} Be1 {[%emt 0:03:44]} 40. Rf1+ {[%emt 0:01:14]} Ke8 {[%emt 0:00:14]} 41. a4 {[%emt 0:04:26]} Bxc3 {[%emt 0:01:01]} 42. bxc3 {[%emt 0:00:01]} Rxg5 {[%emt 0:00:52]} 43. Rb1 {[%emt 0:01:14]} Ne7 {[%emt 0:01:02]} 44. Rb2 {[%emt 0:01:08]} Rgg2 {[%emt 0:04:14]} 45. Rxe2 {[%emt 0:03:58]} Rxe2 {[%emt 0:00:20]} 46. Rh6 {[%emt 0:01:23]} Nd5 {[%emt 0:00:46]} 47. Kb1 {[%emt 0:00:53]} Nc7 {[%emt 0:01:35]} 48. Rh7 {[%emt 0:02:20]} Kd8 {[%emt 0:00:05]} 49. h4 {[%emt 0:00:17]} Rh2 {[%emt 0:00:06]} 50. c4 {[%emt 0:03:01]} Kc8 {[%emt 0:00:05]} 51. a5 {[%emt 0:01:40]} Re2 {[%emt 0:02:06]} 52. c5 Re5 53. c6 {[%emt 0:07:55]} Ne6 {[%emt 0:04:23]} 54. h5 {[%emt 0:02:30]} Rb5+ {[%emt 0:06:15]} 55. Kc1 {[%emt 0:00:07]} Rc5+ {[%emt 0:02:15]} 56. Kb2 {[%emt 0:01:24]} Rxc6 {[%emt 0:00:08]} 57. h6 {[%emt 0:01:24]} Nc7 {[%emt 0:00:30]} 58. Kb3 {[%emt 0:02:29]} Kb8 59. Rh8+ {[%emt 0:03:28]} Kb7 {[%emt 0:02:17]} 60. h7 {[%emt 0:00:15]} Rh6 {[%emt 0:00:04]} 61. Kc4 {[%emt 0:00:13]} Rh5 {[%emt 0:00:55]} 62. Kb4 {[%emt 0:00:58]} Nd5+ {[%emt 0:00:54]} 63. Kc4 {[%emt 0:00:17]} Nf6 {[%emt 0:00:34]} 64. Rf8 {[%emt 0:00:54]} Rh4+ {[%emt 0:00:30]} 65. Kb3 {[%emt 0:00:31]} Nxh7 {[%emt 0:00:09]} 66. Rh8 {[%emt 0:00:29]} Rh5 {[%emt 0:00:55]} 67. Kc4 {[%emt 0:00:29]} Nf6 {[%emt 0:00:28]} 68. Rf8 {[%emt 0:00:23]} Nd7 {[%emt 0:00:11]} 69. Rd8 {[%emt 0:00:39]} Kc7 {[%emt 0:00:29]} *

[Event "CZE-tht Extraliga 2018-19"]
[Site "Czech Republic"]
[Date "2019.04.20"]
[Round "10.5"]
[White "Velicka, Petr"]
[Black "Rehorek, Martin"]
[Result "1/2-1/2"]
[ECO "B42"]
[WhiteElo "2434"]
[BlackElo "2298"]
[Annotator "NA"]
[PlyCount "53"]
[EventDate "2018.11.03"]
[EventType "team-tourn"]
[EventCountry "CZE"]
[SourceTitle "playchess.com"]
[Source "ChessBase"]
[SourceQuality "1"]
[WhiteTeam "Ostrava"]
[BlackTeam "Siesta B"]
[TimeControl "40/5400+30:1800+30"]

1. e4 {[%emt 0:00:00]} c5 {[%emt 0:00:00]} 2. Nf3 {[%emt 0:00:00]} e6 {[%emt 0:00:00]} 3. d4 {[%emt 0:00:01]} cxd4 {[%emt 0:00:00]} 4. Nxd4 {[%emt 0:00:05]} a6 {[%emt 0:00:00]} 5. Bd3 {[%emt 0:00:17]} Nf6 {[%emt 0:00:49]} 6. O-O {[%emt 0:01:10]} d6 {[%emt 0:00:20]} 7. c4 {[%emt 0:00:10]} Be7 {[%emt 0:00:39]} 8. Nc3 {[%emt 0:00:26]} O-O {[%emt 0:00:33]} 9. Be3 {[%emt 0:04:53]} Nc6 {[%emt 0:03:51]} 10. Rc1 {[%emt 0:09:50]} Bd7 {[%emt 0:06:19]} 11. f3 {[%emt 0:05:18]} Rc8 {[%emt 0:08:40]} 12. Nxc6 {[%emt 0:02:02]} Bxc6 {[%emt 0:03:09]} 13. Qd2 {[%emt 0:00:25]} Kh8 {[%emt 0:12:50]} 14. Rfd1 {[%emt 0:03:56]} Rg8 {[%emt 0:12:23]} 15. Bf1 {[%emt 0:06:06]} Nd7 {[%emt 0:10:42]} 16. Nd5 {[%emt 0:03:35]} exd5 {[%emt 0:02:31]} 17. exd5 {[%emt 0:01:28]} Ba4 {[%emt 0:00:11]} 18. b3 {[%emt 0:00:07]} Nc5 {[%emt 0:00:45]} 19. bxa4 {[%emt 0:01:59]} Nxa4 {[%emt 0:01:27]} 20. Qb4 {[%emt 0:02:06]} Qd7 {[%emt 0:01:15]} 21. Bd4 {[%emt 0:04:40]} Bf6 {[%emt 0:00:47]} 22. Bxf6 {[%emt 0:00:49]} gxf6 {[%emt 0:00:03]} 23. Re1 {[%emt 0:06:35]} Rce8 {[%emt 0:01:45]} 24. Rxe8 {[%emt 0:05:59]} Rxe8 {[%emt 0:00:09]} 25. Re1 {[%emt 0:00:30]} Nc5 {[%emt 0:00:50]} 26. Qc3 {[%emt 0:01:31]} Kg7 {[%emt 0:01:27]} 27. f4 {[%emt 0:06:01]} 1/2-1/2

[Event "CZE-tht Extraliga 2018-19"]
[Site "Czech Republic"]
[Date "2019.04.20"]
[Round "10.5"]
[White "Vojta, Tomas"]
[Black "Langner, Ladislav"]
[Result "1-0"]
[ECO "B06"]
[WhiteElo "2369"]
[BlackElo "2375"]
[Annotator "NA"]
[PlyCount "59"]
[EventDate "2018.11.03"]
[EventType "team-tourn"]
[EventCountry "CZE"]
[SourceTitle "playchess.com"]
[Source "ChessBase"]
[SourceQuality "1"]
[WhiteTeam "Brno"]
[BlackTeam "Cesky Tesin"]
[TimeControl "40/5400+30:1800+30"]

1. e4 {[%emt 0:00:00]} g6 {[%emt 0:00:00]} 2. d4 {[%emt 0:00:00]} Bg7 {[%emt 0:00:00]} 3. Nc3 {[%emt 0:00:17]} c6 {[%emt 0:00:06]} 4. h3 {[%emt 0:00:41]} d5 {[%emt 0:00:30]} 5. Nf3 {[%emt 0:00:33]} dxe4 {[%emt 0:00:34]} 6. Nxe4 {[%emt 0:00:21]} Nd7 {[%emt 0:00:21]} 7. c3 {[%emt 0:02:43]} Ngf6 {[%emt 0:00:53]} 8. Bd3 {[%emt 0:03:33]} O-O {[%emt 0:05:48]} 9. O-O {[%emt 0:00:35]} Nxe4 {[%emt 0:02:22]} 10. Bxe4 {[%emt 0:00:08]} c5 {[%emt 0:05:26]} 11. Re1 {[%emt 0:07:12]} cxd4 {[%emt 0:02:09]} 12. Nxd4 $11 {[%emt 0:02:13]} Nc5 {[%emt 0:01:05]} 13. Bc2 {[%emt 0:00:41]} e5 {[%emt 0:08:08]} 14. Nb3 {[%emt 0:10:23]} Ne6 {[%emt 0:08:44]} 15. Qxd8 {[%emt 0:02:33]} Rxd8 {[%emt 0:01:17]} 16. Be3 {[%emt 0:00:43]} f5 {[%emt 0:09:17]} 17. f3 {[%emt 0:03:45]} Bd7 {[%emt 0:01:38]} 18. Rad1 {[%emt 0:05:18]} b6 {[%emt 0:01:07]} 19. Nd2 {[%emt 0:05:17]} Kf8 {[%emt 0:28:52]} 20. Bb3 {[%emt 0:08:53]} Ke7 {[%emt 0:00:08]} 21. Nc4 {[%emt 0:05:40]} b5 {[%emt 0:12:55]} 22. Na5 {[%emt 0:11:23]} a6 {[%emt 0:00:40]} 23. Bd5 {[%emt 0:02:19]} Rac8 {[%emt 0:02:48]} 24. Bb7 {[%emt 0:04:35]} Rc7 {[%emt 0:00:19]} 25. Bb6 {[%emt 0:01:33]} Rxb7 {[%emt 0:00:07]} 26. Nxb7 {[%emt 0:00:03]} Rc8 {[%emt 0:02:08]} 27. Be3 {[%emt 0:02:25]} Bc6 {[%emt 0:01:04]} 28. Nc5 {[%emt 0:02:47]} Bxf3 {[%emt 0:02:21]} 29. Rd7+ {[%emt 0:01:21]} Ke8 {[%emt 0:00:03]} 30. Rxg7 {[%emt 0:00:57]} 1-0

[Event "CZE-tht Extraliga 2018-19"]
[Site "Czech Republic"]
[Date "2019.04.20"]
[Round "10.6"]
[White "Kraus, Tomas"]
[Black "Rydl, Jiri"]
[Result "1-0"]
[ECO "B10"]
[WhiteElo "2456"]
[BlackElo "2428"]
[Annotator "ChessBase"]
[PlyCount "73"]
[EventDate "2018.11.03"]
[EventType "team-tourn"]
[EventCountry "CZE"]
[SourceTitle "playchess.com"]
[Source "ChessBase"]
[SourceQuality "1"]
[WhiteTeam "Turnov"]
[BlackTeam "Siesta"]
[TimeControl "40/5400+30:1800+30"]

1. c4 {[%emt 0:00:00]} c6 {[%emt 0:00:00]} 2. e4 {[%emt 0:00:00]} d5 {[%emt 0:00:15]} 3. exd5 {[%emt 0:00:00]} cxd5 {[%emt 0:00:05]} 4. cxd5 {[%emt 0:00:04]} Nf6 {[%emt 0:00:42]} 5. Qa4+ {[%emt 0:01:39]} Nbd7 {[%emt 0:00:58]} 6. Nc3 {[%emt 0:00:10]} g6 {[%emt 0:03:08]} 7. Bc4 {[%emt 0:00:28]} Bg7 {[%emt 0:00:36]} 8. d3 {[%emt 0:00:19]} O-O {[%emt 0:00:22]} 9. Nf3 {[%emt 0:00:08]} a6 {[%emt 0:01:43]} 10. Qa3 {[%emt 0:00:14]} b6 {[%emt 0:02:33]} 11. O-O {[%emt 0:00:43]} Bb7 {[%emt 0:00:23]} 12. Re1 {[%emt 0:00:46]} Re8 {[%emt 0:02:27]} 13. Ng5 {[%emt 0:00:59]} Rc8 {[%emt 0:07:06]} 14. Be3 {[%emt 0:04:42]} h6 {[%emt 0:10:20]} 15. Nge4 {[%emt 0:28:25]} Nxe4 {[%emt 0:01:04]} 16. Nxe4 {[%emt 0:00:05]} Ne5 {[%emt 0:02:46]} 17. Rad1 {[%emt 0:03:38]} Nxc4 {[%emt 0:02:39]} 18. dxc4 {[%emt 0:00:36]} Rxc4 {[%emt 0:00:43]} 19. f3 {[%emt 0:06:22]} Qa8 {[%emt 0:28:36]} 20. Qd3 {[%emt 0:11:40]} Rb4 {[%emt 0:01:00]} 21. b3 {[%emt 0:04:05]} Rc8 {[%emt 0:07:29]} 22. Qd2 {[%emt 0:07:30]} Rb5 {[%emt 0:01:00]} 23. d6 {[%emt 0:01:57]} Rd5 {[%emt 0:07:44]} 24. Qb4 {[%emt 0:07:52]} exd6 {[%emt 0:03:37]} 25. Nxd6 {[%emt 0:02:32]} Rc2 {[%emt 0:07:48]} 26. Qf4 {[%emt 0:03:14]} Rxd1 {[%emt 0:01:51]} 27. Qxf7+ {[%emt 0:00:54]} Kh7 {[%emt 0:01:15]} 28. Rxd1 {[%emt 0:00:11]} Bc6 {[%emt 0:00:21]} 29. Bxh6 {[%emt 0:08:42]} Kxh6 {[%emt 0:01:42]} 30. Nf5+ {[%emt 0:00:38]} gxf5 {[%emt 0:00:37]} 31. Rd6+ {[%emt 0:00:11]} Kh7 {[%emt 0:00:05]} 32. Qxf5+ {[%emt 0:00:30]} Kg8 {[%emt 0:00:22]} 33. Qxc2 {[%emt 0:00:37]} Be8 {[%emt 0:00:10]} 34. Qd3 {[%emt 0:02:35]} Qa7 {[%emt 0:01:06]} 35. Qd5+ {[%emt 0:01:18]} Bf7 {[%emt 0:03:55]} 36. Rd8+ {[%emt 0:00:37]} Kh7 {[%emt 0:00:09]} 37. Qf5+ {[%emt 0:00:08]} 1-0

[Event "CZE-tht Extraliga 2018-19"]
[Site "Czech Republic"]
[Date "2019.04.20"]
[Round "10.6"]
[White "Kislinsky, Alexey"]
[Black "Londyn, Radek"]
[Result "1/2-1/2"]
[ECO "C45"]
[WhiteElo "2429"]
[BlackElo "2412"]
[Annotator "NA"]
[PlyCount "139"]
[EventDate "2018.11.03"]
[EventType "team-tourn"]
[EventCountry "CZE"]
[SourceTitle "playchess.com"]
[Source "ChessBase"]
[SourceQuality "1"]
[WhiteTeam "Lysa nad Labem"]
[BlackTeam "Poruba"]
[TimeControl "40/5400+30:1800+30"]

1. e4 {[%emt 0:00:00]} e5 {[%emt 0:00:00]} 2. Nf3 {[%emt 0:00:00]} Nc6 {[%emt 0:00:00]} 3. d4 {[%emt 0:00:00]} exd4 {[%emt 0:00:26]} 4. Nxd4 {[%emt 0:00:06]} Bc5 {[%emt 0:00:16]} 5. Be3 {[%emt 0:00:39]} Qf6 {[%emt 0:00:08]} 6. Nb5 {[%emt 0:00:22]} Bxe3 {[%emt 0:01:43]} 7. fxe3 {[%emt 0:00:03]} Qh4+ {[%emt 0:06:36]} 8. g3 {[%emt 0:00:17]} Qd8 {[%emt 0:00:08]} 9. N1c3 {[%emt 0:01:41]} a6 {[%emt 0:01:25]} 10. Nd4 {[%emt 0:00:06]} d6 {[%emt 0:09:39]} 11. Nxc6 {[%emt 0:00:55]} bxc6 {[%emt 0:00:04]} 12. Qd4 {[%emt 0:00:57]} Qg5 {[%emt 0:02:46]} 13. O-O-O {[%emt 0:00:34]} Nf6 {[%emt 0:00:41]} 14. Be2 {[%emt 0:06:48]} O-O {[%emt 0:08:05]} 15. h4 {[%emt 0:07:00]} Qe5 $11 {[%emt 0:03:29]} (15... Qa5 $17) 16. Rhf1 {[%emt 0:02:49]} Re8 {[%emt 0:05:22]} 17. Rf4 {[%emt 0:05:33]} Be6 {[%emt 0:07:24]} 18. Qxe5 {[%emt 0:12:12]} dxe5 {[%emt 0:00:03]} 19. Rf2 {[%emt 0:00:24]} Kf8 {[%emt 0:03:16]} 20. b3 {[%emt 0:02:18]} Ke7 {[%emt 0:00:57]} 21. Rdf1 {[%emt 0:02:13]} h5 {[%emt 0:02:45]} 22. Bd3 {[%emt 0:02:30]} a5 {[%emt 0:06:29]} 23. Na4 {[%emt 0:04:57]} Rab8 {[%emt 0:02:36]} 24. Nc5 {[%emt 0:06:53]} Bh3 {[%emt 0:00:14]} 25. Rd1 {[%emt 0:01:28]} Bg4 {[%emt 0:00:50]} 26. Rdd2 {[%emt 0:00:59]} Red8 {[%emt 0:01:47]} 27. Bc4 {[%emt 0:05:07]} Rd6 {[%emt 0:01:22]} 28. Nd3 {[%emt 0:01:06]} Rf8 {[%emt 0:04:36]} 29. Nxe5 {[%emt 0:05:20]} Nxe4 {[%emt 0:00:31]} 30. Rxd6 {[%emt 0:00:27]} cxd6 {[%emt 0:00:43]} 31. Rf4 {[%emt 0:02:03]} dxe5 {[%emt 0:02:51]} 32. Rxe4 {[%emt 0:00:04]} Kd6 {[%emt 0:01:34]} 33. Bd3 {[%emt 0:00:21]} g5 {[%emt 0:06:20]} 34. Ra4 {[%emt 0:01:57]} gxh4 {[%emt 0:00:06]} 35. gxh4 {[%emt 0:00:04]} f5 {[%emt 0:00:13]} 36. Kd2 {[%emt 0:01:57]} f4 {[%emt 0:03:13]} 37. exf4 {[%emt 0:00:19]} exf4 {[%emt 0:01:25]} 38. Ke1 {[%emt 0:00:15]} Kc7 {[%emt 0:08:45]} 39. Rxa5 {[%emt 0:01:27]} Re8+ {[%emt 0:00:10]} 40. Kf2 {[%emt 0:00:21]} Re3 {[%emt 0:00:16]} 41. Ra4 {[%emt 0:33:33]} Rf3+ {[%emt 0:30:18]} 42. Ke1 {[%emt 0:00:08]} Kd6 {[%emt 0:01:40]} 43. Rd4+ {[%emt 0:01:29]} Ke5 {[%emt 0:04:06]} 44. Re4+ {[%emt 0:00:16]} Kd5 {[%emt 0:00:18]} 45. Rc4 {[%emt 0:00:53]} Ke5 {[%emt 0:05:25]} 46. a4 {[%emt 0:00:29]} Re3+ {[%emt 0:00:00]} 47. Kd2 {[%emt 0:00:00]} Rh3 {[%emt 0:00:00]} 48. Re4+ {[%emt 0:00:00]} Kd6 {[%emt 0:00:00]} 49. Rxf4 {[%emt 0:00:00]} Rxh4 {[%emt 0:00:00]} 50. a5 {[%emt 0:00:00]} Rh1 {[%emt 0:00:00]} 51. Rf6+ {[%emt 0:00:00]} Kc5 {[%emt 0:00:00]} 52. Kc3 {[%emt 0:00:00]} Ra1 {[%emt 0:00:00]} 53. Bc4 {[%emt 0:00:00]} Rb1 {[%emt 0:00:00]} 54. Rg6 {[%emt 0:00:00]} Bf3 {[%emt 0:00:00]} 55. Rh6 {[%emt 0:00:00]} Bg4 {[%emt 0:00:00]} 56. Rf6 {[%emt 0:00:00]} h4 {[%emt 0:00:00]} 57. Rf4 {[%emt 0:00:00]} h3 {[%emt 0:00:00]} 58. b4+ {[%emt 0:02:46]} Kd6 {[%emt 0:00:00]} 59. Rf6+ {[%emt 0:00:14]} Kc7 {[%emt 0:00:00]} 60. Rh6 {[%emt 0:01:35]} Bf5 {[%emt 0:00:00]} 61. Bd3 {[%emt 0:02:03]} Bxd3 {[%emt 0:00:00]} 62. cxd3 {[%emt 0:00:09]} Rc1+ {[%emt 0:00:00]} 63. Kb2 {[%emt 0:00:34]} Rh1 {[%emt 0:00:03]} 64. Rh7+ {[%emt 0:00:06]} Kb8 {[%emt 0:00:43]} 65. Kc3 {[%emt 0:05:55]} h2 {[%emt 0:00:30]} 66. Kd4 {[%emt 0:00:21]} Ka8 {[%emt 0:03:39]} 67. a6 {[%emt 0:01:12]} Kb8 {[%emt 0:00:09]} 68. Rb7+ {[%emt 0:00:05]} Ka8 {[%emt 0:00:15]} 69. Rh7 {[%emt 0:00:05]} Kb8 {[%emt 0:00:08]} 70. Rb7+ {[%emt 0:00:04]} 1/2-1/2

[Event "CZE-tht Extraliga 2018-19"]
[Site "Czech Republic"]
[Date "2019.04.20"]
[Round "10.6"]
[White "Neuman, Petr"]
[Black "Babula, Vlastimil"]
[Result "0-1"]
[ECO "A45"]
[WhiteElo "2397"]
[BlackElo "2549"]
[Annotator "ChessBase"]
[PlyCount "64"]
[EventDate "2018.11.03"]
[EventType "team-tourn"]
[EventCountry "CZE"]
[SourceTitle "playchess.com"]
[Source "ChessBase"]
[SourceQuality "1"]
[WhiteTeam "Pardubice"]
[BlackTeam "Novoborsky"]
[TimeControl "40/5400+30:1800+30"]

1. d4 {[%emt 0:00:00]} Nf6 {[%emt 0:00:00]} 2. Bg5 {[%emt 0:00:00]} Ne4 {[%emt 0:00:34]} 3. Bf4 {[%emt 0:00:00]} c5 {[%emt 0:00:34]} 4. f3 {[%emt 0:00:11]} Qa5+ {[%emt 0:00:45]} 5. c3 {[%emt 0:00:24]} Nf6 {[%emt 0:00:24]} 6. Nd2 {[%emt 0:00:44]} cxd4 {[%emt 0:00:35]} 7. Nb3 {[%emt 0:00:21]} Qd8 {[%emt 0:02:27]} 8. Bxb8 {[%emt 0:03:29]} Rxb8 {[%emt 0:01:48]} 9. Qxd4 {[%emt 0:03:40]} b6 {[%emt 0:01:39]} 10. e4 {[%emt 0:00:25]} e6 {[%emt 0:01:33]} 11. Bc4 {[%emt 0:12:02]} Bb7 {[%emt 0:08:10]} 12. Ne2 {[%emt 0:01:47]} Qc7 {[%emt 0:03:47]} 13. Rd1 {[%emt 0:04:30]} Rc8 {[%emt 0:12:49]} 14. Bd3 {[%emt 0:00:41]} Be7 {[%emt 0:05:30]} 15. O-O {[%emt 0:02:57]} O-O {[%emt 0:02:18]} 16. Qe3 {[%emt 0:08:03]} a6 {[%emt 0:05:30]} 17. Ng3 {[%emt 0:05:38]} d6 {[%emt 0:01:24]} 18. Kh1 {[%emt 0:03:45]} Rfe8 {[%emt 0:03:14]} 19. Bb1 {[%emt 0:03:12]} Bf8 {[%emt 0:03:03]} 20. Nd4 {[%emt 0:07:07]} g6 {[%emt 0:02:35]} 21. f4 {[%emt 0:02:58]} Bg7 {[%emt 0:01:23]} 22. Qe2 {[%emt 0:03:19]} e5 {[%emt 0:03:38]} 23. fxe5 {[%emt 0:00:42]} Rxe5 {[%emt 0:00:27]} 24. Nf3 {[%emt 0:01:46]} Re7 {[%emt 0:01:58]} 25. Qd2 {[%emt 0:02:25]} d5 {[%emt 0:03:43]} 26. exd5 {[%emt 0:01:07]} Bxd5 {[%emt 0:03:51]} 27. Nd4 {[%emt 0:02:19]} Rce8 {[%emt 0:01:42]} 28. Rde1 {[%emt 0:00:59]} h5 {[%emt 0:03:45]} 29. Rxe7 {[%emt 0:01:05]} Qxe7 {[%emt 0:00:57]} 30. h3 {[%emt 0:06:22]} h4 {[%emt 0:10:47]} 31. Ngf5 {[%emt 0:01:32]} gxf5 {[%emt 0:01:06]} 32. Nxf5 {[%emt 0:00:52]} Qe2 {[%emt 0:01:30]} 0-1

[Event "CZE-tht Extraliga 2018-19"]
[Site "Czech Republic"]
[Date "2019.04.20"]
[Round "10.6"]
[White "Rojicek, Vojtech"]
[Black "Cerveny, Martin"]
[Result "0-1"]
[ECO "A15"]
[WhiteElo "2386"]
[BlackElo "2343"]
[Annotator "NA"]
[PlyCount "90"]
[EventDate "2018.11.03"]
[EventType "team-tourn"]
[EventCountry "CZE"]
[SourceTitle "playchess.com"]
[Source "ChessBase"]
[SourceQuality "1"]
[WhiteTeam "Beskydska"]
[BlackTeam "Duras"]
[TimeControl "40/5400+30:1800+30"]

1. c4 Nf6 2. Nf3 c6 3. Nc3 d5 4. e3 g6 5. d4 Bg7 6. Be2 O-O 7. O-O Bf5 8. Qb3 Qb6 9. Qxb6 axb6 10. Bd2 Rd8 11. Rfd1 Ne4 12. Be1 Nxc3 13. Bxc3 Nd7 14. cxd5 cxd5 15. Rdc1 Rdc8 16. a3 Nb8 17. Kf1 Nc6 18. Ke1 f6 19. Kd2 Kf7 20. Bd1 g5 21. Bb3 Ke6 22. Ne1 Kd6 23. Nc2 e6 24. Bb4+ Kd7 25. Bc3 Bf8 26. f3 Bd6 27. g4 Bg6 28. Rh1 Na5 29. Ba2 h5 30. h4 gxh4 31. Rxh4 Bg3 32. Rh3 h4 33. Ne1 f5 34. Ng2 fxg4 35. fxg4 Rf8 36. Nxh4 Rf2+ 37. Kd1 Bc2+ 38. Kc1 Bxh4 39. Rxh4 Nb3+ 40. Bxb3 Bxb3 41. Rh1 b5 42. Re1 Rg8 43. e4 Rxg4 44. exd5 exd5 45. Re3 Re4 0-1

[Event "CZE-tht Extraliga 2018-19"]
[Site "Czech Republic"]
[Date "2019.04.20"]
[Round "10.6"]
[White "Mrazek, Lumir"]
[Black "Obsivac, Josef"]
[Result "1/2-1/2"]
[ECO "A03"]
[WhiteElo "2364"]
[BlackElo "2285"]
[Annotator "NA"]
[PlyCount "111"]
[EventDate "2018.11.03"]
[EventType "team-tourn"]
[EventCountry "CZE"]
[SourceTitle "playchess.com"]
[Source "ChessBase"]
[SourceQuality "1"]
[WhiteTeam "Cesky Tesin"]
[BlackTeam "Brno"]
[TimeControl "40/5400+30:1800+30"]

1. f4 {[%emt 0:00:00]} d5 {[%emt 0:00:00]} 2. Nf3 {[%emt 0:00:00]} g6 {[%emt 0:00:10]} 3. g3 {[%emt 0:00:14]} Bg7 {[%emt 0:00:05]} 4. Bg2 {[%emt 0:00:06]} c5 {[%emt 0:01:13]} 5. O-O {[%emt 0:00:45]} Nc6 {[%emt 0:00:30]} 6. d3 {[%emt 0:00:26]} Nf6 {[%emt 0:01:21]} 7. Qe1 {[%emt 0:00:12]} b6 {[%emt 0:07:52]} 8. c4 {[%emt 0:07:13]} Bb7 {[%emt 0:01:01]} 9. Na3 {[%emt 0:14:37]} e6 {[%emt 0:08:25]} 10. e4 {[%emt 0:04:05]} dxe4 {[%emt 0:23:02]} 11. dxe4 {[%emt 0:00:40]} O-O {[%emt 0:01:33]} 12. e5 {[%emt 0:00:39]} Ne8 {[%emt 0:00:18]} 13. Bd2 {[%emt 0:04:29]} Qe7 {[%emt 0:05:37]} 14. Bc3 {[%emt 0:01:42]} Nb4 {[%emt 0:01:51]} 15. Qe2 {[%emt 0:03:53]} Nc7 {[%emt 0:04:34]} 16. Ng5 {[%emt 0:04:53]} Bxg2 {[%emt 0:00:39]} 17. Qxg2 {[%emt 0:00:49]} Rfd8 {[%emt 0:02:28]} 18. Qh3 {[%emt 0:02:35]} h6 {[%emt 0:00:57]} 19. Ne4 {[%emt 0:00:09]} Ne8 {[%emt 0:01:53]} 20. Nb5 {[%emt 0:04:24]} Nc2 {[%emt 0:02:23]} 21. Rac1 {[%emt 0:07:06]} Ne3 {[%emt 0:00:47]} 22. Rfe1 {[%emt 0:09:08]} Nxc4 {[%emt 0:01:25]} 23. Qf1 {[%emt 0:01:17]} a6 {[%emt 0:03:20]} 24. Qxc4 {[%emt 0:00:11]} axb5 {[%emt 0:00:02]} 25. Qxb5 {[%emt 0:00:15]} Qa7 {[%emt 0:07:34]} 26. a3 {[%emt 0:08:02]} Rd5 {[%emt 0:02:01]} 27. Rcd1 {[%emt 0:02:28]} Rad8 {[%emt 0:04:09]} 28. Rxd5 {[%emt 0:03:14]} exd5 {[%emt 0:00:11]} 29. Nd6 {[%emt 0:02:29]} Nxd6 {[%emt 0:10:56]} 30. exd6 {[%emt 0:00:06]} Rxd6 {[%emt 0:01:15]} 31. Re8+ {[%emt 0:02:00]} Bf8 {[%emt 0:04:45]} 32. Be5 {[%emt 0:08:28]} Qd7 {[%emt 0:01:17]} 33. Qxd7 {[%emt 0:04:05]} Rxd7 {[%emt 0:00:02]} 34. Bf6 {[%emt 0:00:01]} d4 {[%emt 0:01:03]} 35. Kf2 {[%emt 0:00:10]} d3 {[%emt 0:00:26]} 36. Ke1 {[%emt 0:00:48]} Rd6 {[%emt 0:00:11]} 37. Be5 {[%emt 0:02:54]} Re6 {[%emt 0:00:03]} 38. Rxe6 {[%emt 0:00:17]} fxe6 {[%emt 0:00:02]} 39. a4 {[%emt 0:01:12]} c4 {[%emt 0:00:10]} 40. Kd2 {[%emt 0:01:33]} Kf7 {[%emt 0:02:56]} 41. b3 {[%emt 0:11:51]} Bb4+ {[%emt 0:04:12]} 42. Bc3 {[%emt 0:00:07]} cxb3 {[%emt 0:00:22]} 43. Kxd3 {[%emt 0:00:12]} Bc5 {[%emt 0:01:58]} 44. g4 {[%emt 0:06:54]} Ke8 {[%emt 0:03:59]} 45. h3 Kd7 {[%emt 0:01:51]} 46. Bg7 {[%emt 0:07:20]} h5 {[%emt 0:00:10]} 47. gxh5 {[%emt 0:00:50]} gxh5 {[%emt 0:00:02]} 48. Kc3 {[%emt 0:00:58]} Bd6 {[%emt 0:18:04]} 49. Bd4 {[%emt 0:03:40]} Kc6 {[%emt 0:00:17]} 50. Be3 {[%emt 0:00:05]} Bc5 {[%emt 0:03:14]} 51. Bc1 {[%emt 0:00:01]} Kd5 {[%emt 0:00:08]} 52. Kxb3 {[%emt 0:00:08]} Kd4 {[%emt 0:00:29]} 53. Bb2+ {[%emt 0:00:37]} Ke4 {[%emt 0:01:00]} 54. Be5 {[%emt 0:00:06]} Be3 {[%emt 0:00:22]} 55. Bc7 {[%emt 0:01:08]} Kd5 {[%emt 0:01:18]} 56. Kb4 1/2-1/2